fUST/lending_fUST_20240930
["ID","MTS","AMOUNT","RATE_DAILY","PERIOD"]
[339497474,1727635840738,-2204.22139449,0.00015799,2]
[339497475,1727635840749,-2417.2,0.000158,2]
[339497476,1727635840758,-150.0,0.000158,2]
[339497477,1727635840768,-1000.0,0.000158,2]
[339497478,1727635840777,-209.0,0.0001582,2]
[339497479,1727635840787,-209.3051165,0.00015836,2]
[339497481,1727635840797,-1206.32431034,0.0001584,2]
[339497483,1727635840806,-25408.31508701,0.0001584,2]
[339497485,1727635840815,-696.79443635,0.00015844,2]
[339497487,1727635840825,-261.89096282,0.00015847,2]
[339497489,1727635840835,-1000.0,0.00015851,2]
[339497490,1727635840844,-517.5202127,0.00015851,2]
[339497492,1727635840854,-578.51182045,0.00015851,2]
[339497494,1727635840863,-500.0,0.00015851,2]
[339497496,1727635840875,-500.0,0.00015851,2]
[339497498,1727635840886,-369.76944387,0.00015851,2]
[339497499,1727635840896,-500.0,0.00015851,2]
[339497500,1727635840907,-500.0,0.00015851,2]
[339497501,1727635840918,-500.0,0.00015851,2]
[339497502,1727635840928,-500.0,0.00015851,2]
[339497503,1727635840940,-140727.116819,0.00015852,2]
[339497505,1727635840950,-3866.7923665,0.00015852,2]
[339497507,1727635840961,-10231.60470687,0.00015869,2]
[339497562,1727635843546,-719.33144543,0.00015869,2]
[339497682,1727635914087,165.0,0.0001279,2]
[339497747,1727637031773,-300.0,0.00014582,2]
[339497748,1727637031784,-300.0,0.00014582,2]
[339497749,1727637031795,-4143.34821085,0.00014583,2]
[339497750,1727637031830,-324.8000001,0.00014583,2]
[339497751,1727637031841,-1075.17574449,0.00014583,2]
[339497780,1727637037980,-8285.52273367,0.00014583,2]
[339497781,1727637037993,-11071.15331089,0.00014583,2]
[339497782,1727637038003,-222.323,0.00014944,2]
[339497783,1727637038012,-97.62459989,0.00015342,2]
[339497924,1727638232298,-4608.9122723,0.00014556,2]
[339497926,1727638232308,-500.0,0.00014583,2]
[339497928,1727638232318,-157.8103045,0.00014621,2]
[339497930,1727638232329,-300.0,0.0001513,2]
[339497932,1727638232339,-5896.76111794,0.00015131,2]
[339497935,1727638232358,-150.0,0.00015226,2]
[339497938,1727638232372,-500.0,0.00015342,2]
[339497940,1727638232384,-660.71252,0.00015342,2]
[339497942,1727638232394,-150.0,0.0001543,2]
[339497944,1727638232404,-525.0,0.0001543,2]
[339497946,1727638232417,-1217.0,0.0001543,2]
[339497948,1727638232428,-150.0,0.00015523,2]
[339497950,1727638232438,-150.0,0.00015523,2]
[339497952,1727638232448,-150.0,0.00015523,2]
[339497954,1727638232458,-150.0,0.00015523,2]
[339497956,1727638232468,-257.601,0.00015523,2]
[339497958,1727638232478,-251.317,0.00015523,2]
[339497960,1727638232488,-306.0,0.000156,2]
[339497961,1727638232498,-474.87294785,0.00015608,2]
[339497962,1727638232508,-153.0,0.00015656,2]
[339497963,1727638232517,-532.07990838,0.00015659,2]
[339497964,1727638232528,-532.07990838,0.0001567,2]
[339497965,1727638232538,-532.07990838,0.00015681,2]
[339497966,1727638232547,-532.07990838,0.00015691,2]
[339497967,1727638232557,-532.07990838,0.00015702,2]
[339497968,1727638232566,-1000.0,0.00015702,2]
[339497969,1727638232576,-1000.0,0.00015714,2]
[339497970,1727638232585,-1000.0,0.00015715,2]
[339497971,1727638232595,-1116.15618996,0.00015757,2]
[339497972,1727638232604,-160290.43668766,0.00015757,2]
[339497973,1727638232614,-500.0,0.00015757,2]
[339497974,1727638232623,-265.36095551,0.00015757,2]
[339497975,1727638232633,-113834.76293441,0.00015758,2]
[339498031,1727638238346,-492.52303638,0.00015756,2]
[339498032,1727638238357,-531.55232266,0.00015756,2]
[339498033,1727638238367,-500.0,0.00015756,2]
[339498034,1727638238376,-167.34429494,0.00015756,2]
[339498035,1727638238385,-204.83047075,0.00015756,2]
[339498036,1727638238395,-500.0,0.00015756,2]
[339498037,1727638238404,-500.0,0.00015756,2]
[339498038,1727638238413,-500.0,0.00015756,2]
[339498039,1727638238422,-500.0,0.00015756,2]
[339498040,1727638238432,-500.0,0.00015756,2]
[339498041,1727638238442,-3353.61434727,0.00015758,2]
[339498073,1727638240194,-2405.29759885,0.00015757,2]
[339498100,1727638243270,-2007.72495484,0.00015757,2]
[339498102,1727638243283,-1028.95,0.00015757,2]
[339498130,1727638246186,-6743.8314839,0.00015757,2]
[339498131,1727638246198,-2262.0525197,0.00015757,2]
[339498132,1727638281081,163.0,0.000127,2]
[339498133,1727638353532,162.0,0.0001266,2]
[339498145,1727639050156,-413.68599759,0.00023,120]
[339498146,1727639050810,-586.31400241,0.00023,120]
[339498148,1727639080635,1000.0,0.00023,120]
[339498227,1727639432910,-308.43749623,0.00014392,2]
[339498235,1727639438201,-191.56250377,0.00014392,2]
[339498236,1727639438211,-157.757233,0.00014605,2]
[339498237,1727639438222,-150.0,0.00015382,2]
[339498238,1727639438231,-525.0,0.00015382,2]
[339498239,1727639438241,-1217.0,0.00015382,2]
[339498240,1727639438252,-465.87671013,0.00015569,2]
[339498241,1727639438262,-300.0,0.000156,2]
[339498242,1727639438272,-3900.68715846,0.00015601,2]
[339498243,1727639438283,-2188.55144105,0.00015601,2]
[339498251,1727639440229,-978.70544487,0.00015601,2]
[339498252,1727639440240,-2187.42860399,0.00015649,2]
[339498264,1727639443561,-486.371694,0.00015342,2]
[339498265,1727639443570,-1936.40514114,0.00015649,2]
[339498266,1727639443579,-523.69882587,0.00015659,2]
[339498267,1727639443589,-1000.0,0.00015659,2]
[339498268,1727639443598,-523.69882587,0.00015665,2]
[339498269,1727639443607,-523.69882587,0.00015671,2]
[339498270,1727639443616,-523.69882587,0.00015677,2]
[339498271,1727639443625,-523.69882587,0.00015683,2]
[339498272,1727639443634,-241.88011292,0.00015711,2]
[339498273,1727639443646,-751.77600018,0.00015711,2]
[339498274,1727639443655,-2443.7811507,0.00015711,2]
[339498275,1727639443666,-497.64350249,0.00015711,2]
[339498287,1727639446228,-3000.0,0.00015711,2]
[339498289,1727639543365,-413.68599759,0.00023233,120]
[339498290,1727639543394,-899.9101888,0.00025,120]
[339498291,1727639543415,-272.71781602,0.00025,120]
[339498292,1727639616279,60000.0,0.00014,2]
[339498394,1727640638326,-157.757233,0.00014528,2]
[339498396,1727640638336,-291.70412405,0.00015342,2]
[339498415,1727640643512,-150.0,0.00015353,2]
[339498416,1727640643529,-300.0,0.00015381,2]
[339498417,1727640643543,-300.0,0.00015381,2]
[339498418,1727640643556,-150.0,0.00015382,2]
[339498419,1727640643567,-150.0,0.00015382,2]
[339498420,1727640643582,-150.0,0.00015382,2]
[339498421,1727640643598,-150.0,0.00015382,2]
[339498422,1727640643615,-150.0,0.00015382,2]
[339498423,1727640643629,-150.0,0.00015382,2]
[339498424,1727640643645,-525.0,0.00015382,2]
[339498426,1727640643660,-1217.0,0.00015382,2]
[339498427,1727640643673,-7067.94404438,0.00015531,2]
[339498428,1727640643683,-3608.35452698,0.00015593,2]
[339498429,1727640643695,-9476.5398269,0.00015601,2]
[339498430,1727640643709,-14707.7900242,0.00015693,2]
[339498431,1727640643724,-794.92489048,0.00015693,2]
[339498432,1727640643736,-150.112234,0.000157,2]
[339498433,1727640643749,-174.07296743,0.00015706,2]
[339498434,1727640643762,-485.13079411,0.00015706,2]
[339498435,1727640643775,-525.48832756,0.00015706,2]
[339498436,1727640643787,-500.0,0.00015706,2]
[339498437,1727640643797,-241.71233052,0.00015706,2]
[339498438,1727640643815,-500.0,0.00015706,2]
[339498439,1727640643827,-500.0,0.00015706,2]
[339498440,1727640643840,-500.0,0.00015706,2]
[339498441,1727640643853,-500.0,0.00015706,2]
[339498442,1727640643865,-500.0,0.00015706,2]
[339498443,1727640643877,-28525.36603324,0.00015707,2]
[339498444,1727640643888,-80145.21834383,0.00015707,2]
[339498445,1727640643900,-115077.864983,0.00015708,2]
[339498446,1727640643912,-95696.0385016,0.00015708,2]
[339498447,1727640643923,-4882.22598965,0.00015711,2]
[339498448,1727640643935,-177.858,0.00015711,2]
[339498449,1727640643947,-1000.0,0.00015714,2]
[339498450,1727640643959,-172616.797474,0.00015718,2]
[339498451,1727640643972,-143544.057752,0.00015718,2]
[339498452,1727640643984,-151.0,0.00015718,2]
[339498453,1727640643996,-151.0,0.00015718,2]
[339498454,1727640644008,-294.49593,0.00015718,2]
[339498455,1727640644020,-294.49593,0.00015718,2]
[339498456,1727640644031,-294.49593,0.00015718,2]
[339498457,1727640644044,-294.49593,0.00015718,2]
[339498458,1727640644056,-415.743323,0.00015718,2]
[339498459,1727640644067,-415.743323,0.00015718,2]
[339498460,1727640644079,-415.743323,0.00015718,2]
[339498461,1727640644091,-175.26647,0.00015718,2]
[339498462,1727640644102,-175.26647,0.00015718,2]
[339498463,1727640644114,-263.021225,0.00015718,2]
[339498464,1727640644126,-263.021225,0.00015718,2]
[339498465,1727640644138,-415.743323,0.00015718,2]
[339498466,1727640644150,-415.743323,0.00015718,2]
[339498467,1727640644162,-415.743323,0.00015718,2]
[339498468,1727640644174,-175.26647,0.00015718,2]
[339498469,1727640644186,-175.26647,0.00015718,2]
[339498470,1727640644199,-263.021225,0.00015718,2]
[339498471,1727640644211,-263.021225,0.00015718,2]
[339498472,1727640644223,-151.0,0.00015718,2]
[339498473,1727640644235,-151.0,0.00015718,2]
[339498474,1727640644247,-151.0,0.00015718,2]
[339498475,1727640644260,-151.0,0.00015719,2]
[339498476,1727640644272,-294.49593,0.00015719,2]
[339498477,1727640644284,-294.49593,0.00015719,2]
[339498478,1727640644296,-415.743323,0.00015719,2]
[339498479,1727640644308,-175.26647,0.00015719,2]
[339498480,1727640644321,-263.021225,0.00015719,2]
[339498481,1727640644334,-415.743323,0.00015719,2]
[339498482,1727640644347,-175.26647,0.00015719,2]
[339498483,1727640644363,-263.021225,0.00015719,2]
[339498484,1727640644375,-151.0,0.00015719,2]
[339498485,1727640644387,-1000.0,0.00015724,2]
[339498486,1727640644398,-5876.582831,0.00015728,2]
[339498487,1727640644410,-5876.582831,0.00015728,2]
[339498488,1727640644422,-5876.582831,0.00015728,2]
[339498489,1727640644434,-5876.582831,0.00015728,2]
[339498490,1727640644446,-5876.582831,0.00015728,2]
[339498491,1727640644459,-5876.582831,0.00015728,2]
[339498492,1727640644471,-151.0,0.00015728,2]
[339498493,1727640644485,-152.657196,0.00015728,2]
[339498494,1727640644496,-387.382323,0.00015728,2]
[339498495,1727640644508,-387.382323,0.00015728,2]
[339498496,1727640644520,-387.382323,0.00015728,2]
[339498497,1727640644532,-387.382323,0.00015728,2]
[339498498,1727640644544,-387.382323,0.00015728,2]
[339498499,1727640644556,-387.382323,0.00015728,2]
[339498500,1727640644568,-387.382323,0.00015728,2]
[339498501,1727640644580,-387.382323,0.00015728,2]
[339498502,1727640644592,-780.57252,0.00015728,2]
[339498503,1727640644603,-780.57252,0.00015728,2]
[339498504,1727640644615,-780.57252,0.00015728,2]
[339498505,1727640644627,-780.57252,0.00015728,2]
[339498506,1727640644640,-780.57252,0.00015728,2]
[339498507,1727640644652,-780.57252,0.00015728,2]
[339498508,1727640644664,-780.57252,0.00015728,2]
[339498509,1727640644675,-780.57252,0.00015728,2]
[339498510,1727640644687,-3064.747441,0.00015728,2]
[339498511,1727640644700,-3064.747441,0.00015728,2]
[339498512,1727640644711,-3064.747441,0.00015728,2]
[339498513,1727640644723,-3064.747441,0.00015728,2]
[339498514,1727640644737,-464.373909,0.00015728,2]
[339498515,1727640644749,-464.373909,0.00015728,2]
[339498516,1727640644762,-464.373909,0.00015728,2]
[339498517,1727640644774,-464.373909,0.00015728,2]
[339498518,1727640644786,-3064.747441,0.00015728,2]
[339498519,1727640644797,-3064.747441,0.00015728,2]
[339498520,1727640644808,-464.373909,0.00015728,2]
[339498521,1727640644821,-3064.747441,0.00015728,2]
[339498522,1727640644832,-3064.747441,0.00015728,2]
[339498523,1727640644844,-464.373909,0.00015728,2]
[339498524,1727640644856,-464.373909,0.00015728,2]
[339498525,1727640644868,-464.373909,0.00015728,2]
[339498526,1727640644880,-151.0,0.00015728,2]
[339498527,1727640644892,-464.373909,0.00015728,2]
[339498528,1727640644903,-151.0,0.00015728,2]
[339498529,1727640644918,-464.373909,0.00015728,2]
[339498530,1727640644932,-151.0,0.00015728,2]
[339498531,1727640644947,-151.0,0.00015728,2]
[339498532,1727640644962,-151.0,0.00015728,2]
[339498533,1727640644973,-151.0,0.00015728,2]
[339498534,1727640644986,-151.0,0.00015728,2]
[339498535,1727640644998,-151.0,0.00015728,2]
[339498536,1727640645010,-151.0,0.00015728,2]
[339498537,1727640645022,-151.0,0.00015728,2]
[339498538,1727640645034,-151.0,0.00015728,2]
[339498539,1727640645045,-151.0,0.00015728,2]
[339498540,1727640645057,-594.442648,0.00015728,2]
[339498541,1727640645069,-594.442648,0.00015728,2]
[339498542,1727640645081,-594.442648,0.00015728,2]
[339498543,1727640645092,-1461.335449,0.00015728,2]
[339498544,1727640645104,-594.442648,0.00015728,2]
[339498545,1727640645116,-151.0,0.00015728,2]
[339498546,1727640645127,-1461.335449,0.00015728,2]
[339498547,1727640645139,-151.0,0.00015728,2]
[339498548,1727640645151,-151.0,0.00015728,2]
[339498549,1727640645163,-1461.335449,0.00015728,2]
[339498550,1727640645174,-151.0,0.00015728,2]
[339498551,1727640645186,-1461.335449,0.00015728,2]
[339498552,1727640645198,-1461.335449,0.00015728,2]
[339498553,1727640645209,-1461.335449,0.00015728,2]
[339498554,1727640645221,-594.442648,0.00015728,2]
[339498555,1727640645232,-594.442648,0.00015728,2]
[339498556,1727640645244,-594.442648,0.00015728,2]
[339498557,1727640645255,-1461.335449,0.00015728,2]
[339498558,1727640645266,-594.442648,0.00015728,2]
[339498559,1727640645278,-1461.335449,0.00015728,2]
[339498560,1727640645289,-1461.335449,0.00015728,2]
[339498561,1727640645301,-1461.335449,0.00015728,2]
[339498562,1727640645312,-1461.335449,0.00015728,2]
[339498563,1727640645324,-1461.335449,0.00015728,2]
[339498564,1727640645336,-151.0,0.00015728,2]
[339498565,1727640645347,-151.0,0.00015728,2]
[339498566,1727640645358,-151.0,0.00015728,2]
[339498567,1727640645368,-151.0,0.00015728,2]
[339498568,1727640645377,-1526.728364,0.00015728,2]
[339498569,1727640645386,-1526.728364,0.00015728,2]
[339498570,1727640645396,-1526.728364,0.00015728,2]
[339498571,1727640645408,-1526.728364,0.00015728,2]
[339498572,1727640645418,-1526.728364,0.00015728,2]
[339498573,1727640645427,-1526.728364,0.00015728,2]
[339498574,1727640645438,-1526.728364,0.00015728,2]
[339498575,1727640645448,-207.890172,0.00015728,2]
[339498576,1727640645458,-1526.728364,0.00015728,2]
[339498577,1727640645467,-207.890172,0.00015728,2]
[339498578,1727640645477,-1526.728364,0.00015728,2]
[339498579,1727640645487,-207.890172,0.00015728,2]
[339498580,1727640645832,-1526.728364,0.00015728,2]
[339498581,1727640645853,-207.890172,0.00015728,2]
[339498582,1727640645878,-1526.728364,0.00015728,2]
[339498583,1727640645889,-1526.728364,0.00015728,2]
[339498584,1727640645898,-207.890172,0.00015728,2]
[339498585,1727640645908,-207.890172,0.00015728,2]
[339498586,1727640645917,-207.890172,0.00015728,2]
[339498587,1727640645926,-207.890172,0.00015728,2]
[339498588,1727640645935,-182.268473,0.00015728,2]
[339498589,1727640645944,-182.268473,0.00015728,2]
[339498590,1727640645954,-182.268473,0.00015728,2]
[339498591,1727640645963,-182.268473,0.00015728,2]
[339498592,1727640645972,-151.0,0.00015728,2]
[339498593,1727640645981,-151.0,0.00015728,2]
[339498594,1727640645990,-151.0,0.00015728,2]
[339498595,1727640646000,-151.0,0.00015728,2]
[339498596,1727640646009,-182.268473,0.00015728,2]
[339498597,1727640646018,-182.268473,0.00015728,2]
[339498598,1727640646027,-182.268473,0.00015728,2]
[339498599,1727640646036,-182.268473,0.00015728,2]
[339498600,1727640646045,-151.0,0.00015728,2]
[339498601,1727640646055,-151.0,0.00015728,2]
[339498602,1727640646065,-151.0,0.00015728,2]
[339498604,1727640646074,-151.0,0.00015728,2]
[339498605,1727640646084,-151.0,0.00015728,2]
[339498606,1727640646093,-151.0,0.00015728,2]
[339498607,1727640646102,-151.0,0.00015728,2]
[339498608,1727640646111,-151.0,0.00015728,2]
[339498609,1727640646120,-154.798489,0.00015728,2]
[339498611,1727640646129,-151.0,0.00015728,2]
[339498613,1727640646138,-151.0,0.00015728,2]
[339498614,1727640646148,-151.0,0.00015728,2]
[339498616,1727640646157,-151.0,0.00015728,2]
[339498618,1727640646166,-172.708732,0.00015728,2]
[339498619,1727640646175,-294.49593,0.00015728,2]
[339498621,1727640646185,-294.49593,0.00015728,2]
[339498623,1727640646195,-294.49593,0.00015728,2]
[339498624,1727640646206,-294.49593,0.00015728,2]
[339498625,1727640646217,-294.49593,0.00015728,2]
[339498626,1727640646227,-294.49593,0.00015728,2]
[339498627,1727640646238,-294.49593,0.00015728,2]
[339498629,1727640646248,-294.49593,0.00015728,2]
[339498631,1727640646259,-294.49593,0.00015728,2]
[339498632,1727640646268,-294.49593,0.00015728,2]
[339498633,1727640646277,-294.49593,0.00015728,2]
[339498634,1727640646287,-294.49593,0.00015728,2]
[339498636,1727640646296,-415.743323,0.00015728,2]
[339498637,1727640646305,-415.743323,0.00015728,2]
[339498639,1727640646314,-175.26647,0.00015728,2]
[339498640,1727640646325,-415.743323,0.00015728,2]
[339498641,1727640646334,-175.26647,0.00015728,2]
[339498642,1727640646343,-415.743323,0.00015728,2]
[339498644,1727640646353,-175.26647,0.00015728,2]
[339498646,1727640646365,-415.743323,0.00015728,2]
[339498647,1727640646374,-175.26647,0.00015728,2]
[339498649,1727640646383,-415.743323,0.00015728,2]
[339498651,1727640646392,-175.26647,0.00015728,2]
[339498652,1727640646402,-263.021225,0.00015728,2]
[339498653,1727640646411,-175.26647,0.00015728,2]
[339498654,1727640646419,-263.021225,0.00015728,2]
[339498655,1727640646429,-263.021225,0.00015728,2]
[339498656,1727640646438,-263.021225,0.00015728,2]
[339498657,1727640646448,-415.743323,0.00015728,2]
[339498658,1727640646458,-263.021225,0.00015728,2]
[339498659,1727640646467,-415.743323,0.00015728,2]
[339498660,1727640646476,-263.021225,0.00015728,2]
[339498661,1727640646487,-415.743323,0.00015728,2]
[339498662,1727640646504,-175.26647,0.00015728,2]
[339498663,1727640646513,-175.26647,0.00015728,2]
[339498664,1727640646522,-175.26647,0.00015728,2]
[339498665,1727640646531,-175.26647,0.00015728,2]
[339498666,1727640646540,-263.021225,0.00015728,2]
[339498667,1727640646550,-175.26647,0.00015728,2]
[339498668,1727640646559,-263.021225,0.00015728,2]
[339498669,1727640646568,-175.26647,0.00015728,2]
[339498670,1727640646577,-263.021225,0.00015728,2]
[339498671,1727640646587,-263.021225,0.00015728,2]
[339498672,1727640646596,-415.743323,0.00015728,2]
[339498673,1727640646605,-415.743323,0.00015728,2]
[339498674,1727640646614,-263.021225,0.00015728,2]
[339498675,1727640646623,-263.021225,0.00015728,2]
[339498676,1727640646632,-415.743332,0.00015728,2]
[339498677,1727640646641,-151.0,0.00015728,2]
[339498678,1727640646649,-151.0,0.00015728,2]
[339498679,1727640646658,-151.0,0.00015728,2]
[339498680,1727640646667,-151.0,0.00015728,2]
[339498681,1727640646676,-151.0,0.00015728,2]
[339498682,1727640646686,-57538.9324915,0.00015728,2]
[339498683,1727640646695,-47848.0192508,0.00015728,2]
[339498684,1727640646704,-47848.0192508,0.00015729,2]
[339498685,1727640646713,-151.0,0.00015738,2]
[339498686,1727640646722,-151.0,0.00015738,2]
[339498687,1727640646731,-151.0,0.00015738,2]
[339498688,1727640646745,-151.0,0.00015738,2]
[339498689,1727640646754,-151.0,0.00015738,2]
[339498690,1727640646764,-151.0,0.00015738,2]
[339498691,1727640646773,-151.0,0.00015738,2]
[339498692,1727640646782,-189.023305,0.00015738,2]
[339498693,1727640646791,-151.0,0.00015738,2]
[339498694,1727640646801,-151.0,0.00015738,2]
[339498695,1727640646810,-629.17665,0.00015738,2]
[339498696,1727640646819,-629.17665,0.00015738,2]
[339498697,1727640646829,-418.74805,0.00015738,2]
[339498698,1727640646840,-5876.582831,0.00015738,2]
[339498699,1727640646849,-5876.582831,0.00015738,2]
[339498700,1727640646859,-692.408509,0.00015738,2]
[339498701,1727640646869,-692.408509,0.00015738,2]
[339498702,1727640646878,-464.373909,0.00015738,2]
[339498703,1727640646887,-464.373909,0.00015738,2]
[339498704,1727640646897,-2860.683139,0.00015738,2]
[339498705,1727640646906,-2860.683139,0.00015738,2]
[339498706,1727640646916,-1461.335449,0.00015738,2]
[339498707,1727640646925,-1461.335449,0.00015738,2]
[339498708,1727640646936,-1526.728364,0.00015738,2]
[339498709,1727640646945,-1526.728364,0.00015738,2]
[339498710,1727640646955,-151.0,0.00015738,2]
[339498711,1727640646964,-151.0,0.00015738,2]
[339498712,1727640646974,-294.49593,0.00015738,2]
[339498713,1727640646983,-294.495931,0.00015738,2]
[339498714,1727640646993,-175.26647,0.00015738,2]
[339498715,1727640647002,-263.021225,0.00015738,2]
[339498716,1727640647012,-175.26646,0.00015738,2]
[339498717,1727640647022,-263.021222,0.00015738,2]
[339498718,1727640647032,-151.0,0.00015739,2]
[339498719,1727640647042,-151.0,0.00015739,2]
[339498720,1727640647051,-151.0,0.00015739,2]
[339498721,1727640647061,-151.0,0.00015739,2]
[339498722,1727640647071,-151.0,0.00015739,2]
[339498723,1727640647080,-151.0,0.00015739,2]
[339498724,1727640647090,-155.893003,0.00015739,2]
[339498725,1727640647099,-151.0,0.00015739,2]
[339498726,1727640647109,-151.0,0.00015739,2]
[339498727,1727640647119,-151.0,0.00015739,2]
[339498728,1727640647129,-176.461399,0.00015739,2]
[339498729,1727640647140,-2000.0,0.00015739,2]
[339498730,1727640647149,-2000.0,0.00015739,2]
[339498731,1727640647161,-2022.48948,0.00015739,2]
[339498732,1727640647170,-151.0,0.00015739,2]
[339498733,1727640647180,-151.0,0.00015739,2]
[339498734,1727640647189,-151.0,0.00015739,2]
[339498735,1727640647198,-151.0,0.00015739,2]
[339498736,1727640647208,-629.17665,0.00015739,2]
[339498737,1727640647218,-629.17665,0.00015739,2]
[339498738,1727640647227,-629.17665,0.00015739,2]
[339498739,1727640647240,-629.17665,0.00015739,2]
[339498740,1727640647249,-418.74805,0.00015739,2]
[339498741,1727640647259,-418.74805,0.00015739,2]
[339498742,1727640647268,-692.408509,0.00015739,2]
[339498743,1727640647278,-692.408509,0.00015739,2]
[339498744,1727640647288,-692.408509,0.00015739,2]
[339498745,1727640647297,-692.408509,0.00015739,2]
[339498746,1727640647307,-387.382323,0.00015739,2]
[339498747,1727640647317,-387.382323,0.00015739,2]
[339498748,1727640647326,-780.57252,0.00015739,2]
[339498749,1727640647336,-780.57252,0.00015739,2]
[339498750,1727640647348,-3064.747441,0.00015739,2]
[339498751,1727640647360,-464.373909,0.00015739,2]
[339498752,1727640647370,-3064.747441,0.00015739,2]
[339498753,1727640647379,-464.373909,0.00015739,2]
[339498754,1727640647389,-151.0,0.00015739,2]
[339498755,1727640647399,-2860.683139,0.00015739,2]
[339498756,1727640647408,-2860.683139,0.00015739,2]
[339498757,1727640647418,-2860.683139,0.00015739,2]
[339498758,1727640647428,-2860.683139,0.00015739,2]
[339498759,1727640647439,-151.0,0.00015739,2]
[339498760,1727640647448,-594.442648,0.00015739,2]
[339498761,1727640647458,-1461.335449,0.00015739,2]
[339498762,1727640647468,-594.442648,0.00015739,2]
[339498763,1727640647477,-1461.335449,0.00015739,2]
[339498764,1727640647490,-151.0,0.00015739,2]
[339498765,1727640647501,-1526.728364,0.00015739,2]
[339498766,1727640647511,-207.890172,0.00015739,2]
[339498767,1727640647520,-1526.728364,0.00015739,2]
[339498768,1727640647530,-207.890172,0.00015739,2]
[339498769,1727640647540,-182.268473,0.00015739,2]
[339498770,1727640647551,-151.0,0.00015739,2]
[339498771,1727640647560,-151.0,0.00015739,2]
[339498772,1727640647569,-182.268473,0.00015739,2]
[339498773,1727640647579,-151.0,0.00015739,2]
[339498774,1727640647589,-151.0,0.00015742,2]
[339498775,1727640647599,-151.0,0.00015742,2]
[339498776,1727640647609,-151.0,0.00015742,2]
[339498777,1727640647618,-151.0,0.00015742,2]
[339498778,1727640647628,-151.0,0.00015742,2]
[339498779,1727640647637,-211.131809,0.00015742,2]
[339498780,1727640647648,-629.17665,0.00015742,2]
[339498781,1727640647657,-629.17665,0.00015742,2]
[339498782,1727640647666,-418.74805,0.00015742,2]
[339498783,1727640647675,-692.408509,0.00015742,2]
[339498784,1727640647684,-692.408509,0.00015742,2]
[339498785,1727640647693,-2860.683139,0.00015742,2]
[339498786,1727640647702,-2860.683139,0.00015742,2]
[339498787,1727640647713,-151.0,0.00015747,2]
[339498788,1727640647723,-151.0,0.00015747,2]
[339498789,1727640647735,-151.0,0.00015747,2]
[339498790,1727640647746,-151.0,0.00015747,2]
[339498791,1727640647755,-151.0,0.00015747,2]
[339498792,1727640647765,-629.17665,0.00015747,2]
[339498793,1727640647774,-629.17665,0.00015747,2]
[339498794,1727640647784,-418.74805,0.00015747,2]
[339498795,1727640647793,-5876.582831,0.00015747,2]
[339498796,1727640647803,-5876.582831,0.00015747,2]
[339498797,1727640647813,-5876.582831,0.00015747,2]
[339498798,1727640647823,-5876.582831,0.00015747,2]
[339498799,1727640647832,-692.408509,0.00015747,2]
[339498800,1727640647841,-692.408509,0.00015747,2]
[339498801,1727640647851,-387.382323,0.00015747,2]
[339498802,1727640647861,-387.382323,0.00015747,2]
[339498803,1727640647871,-387.382323,0.00015747,2]
[339498804,1727640647880,-387.382323,0.00015747,2]
[339498805,1727640647890,-780.57252,0.00015747,2]
[339498806,1727640647899,-780.57252,0.00015747,2]
[339498807,1727640647911,-780.57252,0.00015747,2]
[339498808,1727640647923,-780.57252,0.00015747,2]
[339498809,1727640647933,-3064.747441,0.00015747,2]
[339498810,1727640647942,-3064.747441,0.00015747,2]
[339498811,1727640647952,-464.373909,0.00015747,2]